Cogmind - Beta 14 @@@ ROGUE MODE // 2024.10.13 @ 19:56:40 Player: Alzonario Result: Destroyed by as-70549 with Assembled Blade Performance ------------- Evolutions (0) 0 Regions Visited (3) 600 Robots Destroyed (6) 30 Value Destroyed (60) 60 Prototype IDs (4) 80 Alien Tech Used (0) 0 Bonus (183) 183 TOTAL SCORE: 953 Bonus ------- Aligned with FarCom 300 Friendly Fire -117 Cogmind --------- Core Integrity 0/250 Matter 244/300 Energy 100/100 System Corruption 1% Temperature Cool (0) Movement Core (200) Ox3 Location -10/Exiles Parts ------- > --- POWER (1) -------- (None) > --- PROPULSION (2) --- (None) > --- UTILITY (2) ------ Small Storage Unit > --- WEAPON (2) ------- Heavy Hammer Heavy Hammer > --- INVENTORY (8) ---- Medium Battery (150) Medium Battery (150) Medium Matter Pod (0) Structural Scanner Experimental Sensor Array Peak State ------------ > --- POWER ------------ Light Ion Engine > --- PROPULSION ------- Compact Wheel Compact Wheel > --- UTILITY ---------- Small Storage Unit Trap Reconfigurator > --- WEAPON ----------- Heavy Hammer Heavy Hammer > --- INVENTORY -------- Medium Battery Medium Battery Medium Matter Pod Structural Scanner Experimental Sensor Array [Rating: 18] Favorites ----------- Power Light Ion Engine Engine Light Ion Engine Propulsion Compact Wheel Wheel Compact Wheel Utility Small Storage Unit Device Structural Scanner Storage Small Storage Unit Weapon Heavy Hammer Energy Gun Small Laser Energy Cannon Beam Cannon Impact Weapon Heavy Hammer Build | -11 -10 -10 -10 ------- Run | Yrd Mat Min Exi Slots Evolved . | . . . . Power . | . . . . Propulsion . | . . . . Utility . | . . . . Weapon . | . . . . Parts Attached 16 | 3 9 1 3 Power 2 | 1 1 . . Engine 2 | 1 1 . . Core . | . . . . Reactor . | . . . . Propulsion 4 | 2 2 . . Treads . | . . . . Leg . | . . . . Wheel 4 | 2 2 . . Hover . | . . . . Flight . | . . . . Utility 6 | . 2 1 3 Device 5 | . 1 1 3 Storage 1 | . 1 . . Processor . | . . . . Hackware . | . . . . Protection . | . . . . Artifact . | . . . . Weapon 4 | . 4 . . Energy Gun 1 | . 1 . . Energy Cannon 1 | . 1 . . Ballistic Gun . | . . . . Ballistic Cannon . | . . . . Launcher . | . . . . Special Weapon . | . . . . Impact Weapon 2 | . 2 . . Slashing Weapon . | . . . . Piercing Weapon . | . . . . Special Melee Weapon . | . . . . Unidentified Prototypes 4 | . . 1 3 Parts Lost 4 | . 2 . 2 Power 2 | . 1 . 1 Propulsion 2 | . 1 . 1 Utility . | . . . . Weapon . | . . . . Highest Loss Streak 2 | . 2 . 2 To Critical Strikes 1 | . . . 1 Average Slot Usage (%) 94 | . 78 100 97 Engine 13 | . 12 14 13 Wheel 27 | . 26 28 28 Device 10 | . . 14 12 Storage 13 | . 10 14 14 Impact Weapon 26 | . 20 28 28 Peak Build Rating 18 | 3 9 17 18 Average Rating 9 | 1 7 9 9 On Entrance 7 | . 3 9 17 Naked Turns . | . . . . Heaviest Build 15 | 3 15 15 15 Greatest Support 32 | 3 32 16 16 Greatest Overweight (x) 3 | . . . 3 Average Overweight (x) . | . . . . Largest Inventory Capacity 8 | 5 8 8 8 Average Capacity 7 | 5 7 8 8 Most Carried 6 | 4 5 4 6 Average Carried 3 | 2 2 3 4 Final Capacity 8 | 5 8 8 8 Final Carried 5 | 2 3 4 5 Class Distribution -------------------- 100% | Mutant Dominant Class ---------------- Mutant | -10/Materials Mutant | -10/Mines Mutant | -10/Exiles Resources | -11 -10 -10 -10 ----------- Run | Yrd Mat Min Exi Matter Collected 310 | 192 82 36 . Remotely . | . . . . Salvage Created 87 | . 62 . 25 Parts 1 | . 1 . . Haulers Intercepted . | . . . . Recyclers Shooed . | . . . . Parts Field Recycled . | . . . . Retrieved Matter . | . . . . Parts Self-Destructed . | . . . . Prevented . | . . . . Kills | -11 -10 -10 -10 ------- Run | Yrd Mat Min Exi Combat Hostiles Destroyed 7 | . 6 . 1 Melee 2 | . 2 . . Cannons 1 | . . . 1 Classes Destroyed 2 | . 1 . 1 Swarmer 6 | . 6 . . Assembled 1 | . . . 1 Best Kill Streak 5 | . 5 . 1 Combat Bots Only 5 | . 5 . 1 Max Kills in Single Turn 1 | . 1 . 1 Gunslinging . | . . . . Exploded . | . . . . Melee 1 | . 1 . . Uniques/NPCs Destroyed . | . . . . Combat | -11 -10 -10 -10 -------- Run | Yrd Mat Min Exi Hostile Shots Fired 106 | . 82 5 19 Missed 39 | . 30 1 8 Damage Taken 665 | . 417 46 202 Core 272 | . 116 36 120 Absorbed by Shields . | . . . . Core Remaining (%) 100 | 100 . . . Volleys Fired . | . . . . Largest . | . . . . Hottest . | . . . . Shots Fired . | . . . . Gun . | . . . . Cannon . | . . . . Launcher . | . . . . Special . | . . . . Kinetic . | . . . . Thermal . | . . . . Explosive . | . . . . Electromagnetic . | . . . . Robot Hit Streak . | . . . . Robot Miss Streak . | . . . . Penetration Max . | . . . . Secondary Targets . | . . . . Shots Hit Robots 10 | . 8 . 2 Core Hits 2 | . 1 . 1 Critical Kills . | . . . . Critical Parts Destroyed 1 | . 1 . . Critical Strikes 1 | . 1 . . Smash 1 | . 1 . . Melee Attacks 14 | . 12 . 2 Impact 14 | . 12 . 2 Slashing . | . . . . Piercing . | . . . . Sneak Attacks 1 | . . . 1 Combat Hostiles . | . . . . Follow-up Attacks 1 | . 1 . . Damage Inflicted 528 | . 350 . 178 Guns . | . . . . Cannons . | . . . . Explosions . | . . . . Melee 528 | . 350 . 178 Ramming . | . . . . Kinetic . | . . . . Thermal . | . . . . Explosive . | . . . . Electromagnetic . | . . . . Impact 528 | . 350 . 178 Slashing . | . . . . Piercing . | . . . . Highest Corruption 1 | . 1 1 1 Average Corruption 1 | . 1 1 1 Corruption Purged . | . . . . Corruption Blocked . | . . . . Effects 8 | . 2 4 2 Message Errors 1 | . . . 1 Matter Fused 2 | . . 1 1 Energy Discharges 4 | . 2 2 . Alerts 1 | . . 1 . Overload Shots . | . . . . Overflow Damage 232 | . 165 . 67 Projectiles 21 | . . . 21 Explosions . | . . . . Melee 211 | . 165 . 46 Knockbacks 4 | . 2 . 2 Impact 3 | . 2 . 1 Kinetic . | . . . . Secondary 1 | . . . 1 Self-Inflicted Damage . | . . . . Shots . | . . . . Rammed . | . . . . Targets Rammed . | . . . . Kicked . | . . . . Crushed . | . . . . Highest Temperature . | . . . . Average Temperature . | . . . . Received Heat Transfer 67 | . . 27 40 Siege Activations . | . . . . Robots Corrupted 4 | . 4 . . Combat Hostiles 4 | . 4 . . Parts Fried 4 | . 4 . . Impact Corruptions 13 | . 8 . 5 Robots Melted . | . . . . Combat Hostiles . | . . . . Parts Melted . | . . . . Heat Transferred . | . . . . Parts Sabotaged . | . . . . Parts Stolen . | . . . . Parts Stripped . | . . . . Power Chain Reactions . | . . . . Alert | -11 -10 -10 -10 ------- Run | Yrd Mat Min Exi Peak Influence 230 | . 230 149 . Initial 89 | . . 89 . Average 102 | . 85 126 . Maximum Alert Level 1 | . 1 . . Low Security (%) 94 | 100 87 100 . Level 1 5 | . 12 . . Level 2 . | . . . . Level 3 . | . . . . Level 4 . | . . . . Level 5 . | . . . . High Security . | . . . . Max Security . | . . . . Squads Dispatched . | . . . . Investigation . | . . . . Extermination . | . . . . Reinforcement . | . . . . Assault . | . . . . Garrison . | . . . . Intercept . | . . . . Searches Triggered . | . . . . Construction Impeded . | . . . . Haulers Reinforced . | . . . . Active Scanning Responses . | . . . . Cargo Convoy Interrupts . | . . . . Stealth | -11 -10 -10 -10 --------- Run | Yrd Mat Min Exi Distress Signals . | . . . . Communications Jammed . | . . . . Distress Signals . | . . . . Times Spotted 23 | . 12 4 7 Peak Tracking Total 10 | . 10 2 8 Tactical Retreats 4 | . 2 2 . Traps | -11 -10 -10 -10 ------- Run | Yrd Mat Min Exi Traps Triggered 1 | . 1 . . Indirectly . | . . . . Trap Hack Attempts . | . . . . Triggered . | . . . . Disarmed . | . . . . Reprogrammed . | . . . . Reused . | . . . . Traps Extracted . | . . . . Installed . | . . . . Triggered . | . . . . Machines | -11 -10 -10 -10 ---------- Run | Yrd Mat Min Exi Machines Disabled . | . . . . Max in Single Turn . | . . . . Machines Repaired . | . . . . Machines Dismantled . | . . . . Machines Sabotaged . | . . . . Overloaded Fab Kills . | . . . . Hacking | -11 -10 -10 -10 --------- Run | Yrd Mat Min Exi Machines Accessed 1 | . 1 . . Terminals 1 | . 1 . . Fabricators . | . . . . Repair Stations . | . . . . Recycling Units . | . . . . Scanalyzers . | . . . . Garrison Access . | . . . . Total Hacks 3 | . 3 . . Successful 2 | . 2 . . Failed 1 | . 1 . . Catastrophic . | . . . . Database Lockouts . | . . . . Manual 4 | . 3 . 1 Terminals 3 | . 3 . . Fabricators . | . . . . Repair Stations . | . . . . Recycling Units . | . . . . Scanalyzers . | . . . . Garrison Access . | . . . . Terminal Hacks . | . . . . Fabricator Hacks . | . . . . Repair Station Hacks . | . . . . Recycling Unit Hacks . | . . . . Scanalyzer . | . . . . Garrison Access Hacks . | . . . . Unauthorized Hacks 2 | . 2 . . Terminals 2 | . 2 . . Assimilate 1 | . 1 . . Botnet 1 | . 1 . . Fabricators . | . . . . Repair Stations . | . . . . Recycling Units . | . . . . Scanalyzers . | . . . . Garrison Access . | . . . . Data Cores Recovered . | . . . . Used . | . . . . Hacking Detections 1 | . 1 . . Full Trace Events . | . . . . Feedback Events . | . . . . Feedback Blocked . | . . . . Robot Schematics Acquired . | . . . . Robots Built . | . . . . Authchips . | . . . . Time . | . . . . Total Robot Build Rating . | . . . . Part Schematics Acquired . | . . . . Parts Built . | . . . . Authchips . | . . . . Time . | . . . . Total Part Build Rating . | . . . . Parts Repaired . | . . . . Time . | . . . . Parts Recycled . | . . . . Recycled Matter . | . . . . Retrieved Matter . | . . . . Retrieved Components . | . . . . Parts Scanalyzed . | . . . . Part Schematics Acquired . | . . . . Parts Damaged . | . . . . Bothacking | -11 -10 -10 -10 ------------ Run | Yrd Mat Min Exi Used RIF Installer . | . . . . Robots Hacked . | . . . . Non-combat . | . . . . Combat . | . . . . Robot Hacks Applied . | . . . . Relay Couplers Released . | . . . . Fabnet Peak Effective % . | . . . . Robots Rewired . | . . . . Allies Hacked . | . . . . Hacks Repelled . | . . . . Allies | -11 -10 -10 -10 -------- Run | Yrd Mat Min Exi Total Allies . | . . . . Largest Group . | . . . . Highest-Rated Group . | . . . . Highest-Rated Ally . | . . . . Total Orders . | . . . . Ally Attacks . | . . . . Total Damage . | . . . . Kills . | . . . . Allies Corrupted . | . . . . Allies Melted . | . . . . Intel | -11 -10 -10 -10 ------- Run | Yrd Mat Min Exi Robot Analysis Total . | . . . . Derelict Logs Recovered 1 | . . 1 . Drone Launches . | . . . . Drone Recoveries . | . . . . Exploration | -11 -10 -10 -10 ------------- Run | Yrd Mat Min Exi Turns Passed 1372 | 25 295 324 728 Spaces Moved 1322 | 34 253 322 713 Core 41 | 34 6 . 1 Treads . | . . . . Legs . | . . . . Wheels 1281 | . 247 322 712 Hover . | . . . . Flight . | . . . . Fastest Speed 50 | 50 50 100 100 Average Speed 97 | 50 95 100 100 Slowest Speed 200 | 50 100 100 200 Overloaded Moves . | . . . . Propulsion Burnouts . | . . . . Robots Hopped . | . . . . Cave-ins Triggered . | . . . . Time Travels 1 | . . . 1 Exploration Rate (%) 48 | 4 52 44 94 Regions Visited 3 Branch Regions 2 Pre-discovered Areas . | . . . . Known Exits Taken . | . . . . Unknown Exits Taken 3 | 1 1 1 . Scrap Searched 1 | . . 1 . Spaces Dug . | . . . . Terrain Destroyed . | . . . . Melee . | . . . . Projectile . | . . . . AOE . | . . . . Terrain Rammed . | . . . . Walls Destroyed . | . . . . Machines Disabled . | . . . . Actions | -11 -10 -10 -10 --------- Run | Yrd Mat Min Exi Total 1379 | 41 290 323 725 Wait 6 | . 6 . . Move 1319 | 33 252 321 713 Hop . | . . . . Pick Up 19 | 5 10 1 3 Fast Attach . | . . . . Attach 13 | 3 8 . 2 Detach 1 | . . . 1 Swap 3 | . 1 1 1 Drop 5 | . 3 . 2 Fire . | . . . . Melee 12 | . 10 . 2 Ram . | . . . . Kick . | . . . . Crush . | . . . . Escape Stasis . | . . . . Rewire 1 | . . . 1 Trap . | . . . . Miscellaneous . | . . . . Route ------- -11/Scrapyard -10/Materials (discovered 2 exits: [*Mat] / [*Min]) -10/Mines -10/Exiles (discovered 1 exit: [*Min]) History --------- Turn | Location | Event 16 | -11/Scrapyard | Discovered new exit (range 15) 26 | -11/Scrapyard | Entered Materials 204 | -10/Materials | Discovered new exit (range 16) 307 | -10/Materials | Discovered new exit (range 8) 321 | -10/Materials | Entered Mines 322 | -10/Mines | Build established: Mutant 464 | -10/Mines | Core integrity fell below 50% 476 | -10/Mines | Found a damaged Exp. Sensor Array with a note attached 478 | -10/Mines | Found Prototype Device 587 | -10/Mines | Deemed a non-threat by the Exiles lab entrance 587 | -10/Mines | Discovered new exit (range 6) 625 | -10/Mines | Identified Exp. Sensor Array 645 | -10/Mines | Entered Exiles 673 | -10/Exiles | Met 8R-AWN 690 | -10/Exiles | Met EX-HEX 729 | -10/Exiles | Met EX-BIN 841 | -10/Exiles | Met EX-DEC 908 | -10/Exiles | Visited The Gauntlet 1117 | -10/Exiles | Discovered new exit (range 14) 1242 | -10/Exiles | Aligned with FarCom system 1243 | -10/Exiles | Given EX-Vault access code 1266 | -10/Exiles | Opened EX-Vault 1280 | -10/Exiles | Found Prototype Device 1281 | -10/Exiles | Identified Trap Reconfigurator 1285 | -10/Exiles | Found Prototype Device 1286 | -10/Exiles | Identified Chronowheel 1286 | -10/Exiles | Activated Chronowheel 1286 | -10/Exiles | Spacetime reconverged on an earlier point 1290 | -10/Exiles | Found Prototype Device 1291 | -10/Exiles | Identified Supersonic Drone Bay 1315 | -10/Exiles | Warned to stay clear of 0b10 Research branches 1360 | -10/Exiles | Attacked by the Exiles 1371 | -10/Exiles | Core integrity fell below 20% 1373 | -10/Exiles | Destroyed by as-70549 with Assembled Blade Last Messages --------------- time, folks! 01362_ Assembled Analyzer disabled. 01364_ Lgt. Ion Engine destroyed. 01369_ Sneak attack on EX-HEX. 01369_ Destroyed Imp. System Guard. 01369_ Destroyed Adv. Transmission Jammer. 01369_ Destroyed EX Chip 2. 01369_ EX-HEX system corrupted by crushing effect. 01369_ EX-HEX knocked back. 01369_ Destroyed Asb. Hover Unit. 01369_ as-88455 system corrupted by crushing effect. 01369_ as-88455 destroyed. 01369_ Machine disabled. 01370_ Penetrated by HV Slug. 01370_ Critical hit (Destroy). 01370_ Com. Wheel destroyed. 01370_ Com. Wheel severed. 01372_ HV Slug penetrates as-64886. 01372_ as-64886 destroyed. 01372_ Penetrated by HV Slug. Map ----- +----------------------------------------------------+ | ##""" ##?### ###"" """"##????????????????????? | | ##""" ##?##" """"##????????????????????? | | ???#####?##" """##????????????????????? | | ???#####?##" """##????????????????????? | | ####?????##" """##????????????????????? | | ####?????##" """## ???????????????????? | | ""##?????##" """## ???????????????????? | | ""##?????### """""" #???????????????? | | ##?????### """#######???????????????? | | ##??????##" "X" """"" ##???????????????? | | "##??????##" """ # "?"##???????????????? | | ""##?????###" """""""""# ????????????????????? | | ""##????####" ########### ????????????????????? | | ###########"" ############????????????????????? | | ##########"" ###?????????????????????????????? | | #"###""""""" ####?#############??????????????? | | """""" " "" ##################?????????????? | | "" """ " #####"""""""""####????????????? | | " " " """ """"###????????????? | | "" " ##????????????? | | " """##?????????#### | | "%"###???????##### | | "#####?????###" | | aa ""####????###" | | """""" a % """##??#####" | | ######""" @ % "###?#### | | ""###########""" ###### | | """####??#######""" a ##### | | """####???????###"""" ### | | ""########?#####"" c ## | | ##############"""" ### | | ## ####""" ""### | | """" #"""#### | | ######### | | ########?? | | " ####??????? | | " "" "" ""###???????? | | ""## ##""" " " ""#"a "###????????? | | ""#### ######""" """##"""""""####????????? | | """"##### ########""""#############?????????? | | """##### ########################??????????? | | ""#####! "!##?#####???????????????????????? | | """######" !##?????????????????????????????? | | ####?##" "##?????????????????????????????? | | ####??##!!""!"##?????????????????????????????? | | ###???##########?????????????????????????????? | | ###????##########?????????????????????????????? | | ###???????????????????????????????????????????? | | ##????????????????????????????????????????????? | | ##????????????????????????????????????????????? | +----------------------------------------------------+ Best States ------------- Heat Dissipation 25 Energy Generation 10 Energy Capacity 125 Matter Stores 300 Matter Capacity 300 Sight Range 16 Robot Scan Range 20 Terrain Scan Density 10 Evasion (%) 50 Item Schematics ----------------- None Robot Schematics ------------------ None Fabricated ------------ Nothing Alien Tech Used ----------------- None Achievements -------------- None Challenges ------------ None Game ------ Seed SuperchargedVariableBuckler Manual? 0 Play Time 00:17:01 Cumulative 5.0 hours Start 2024.10.13 @ 19:40:22 End 2024.10.13 @ 19:56:40 Sessions 1 Manual Loads 0 Difficulty Rogue Special Mode None Game No. 5 Rogue 5 Adventurer 0 Explorer 0 Win Type - Total 0 Types 0/0/0/0/0/0/0/0/0 Lore% 9 Gallery% 8 Achievement% 21 Wizard Run 0 Options --------- Layout 0 ASCII 0 Keyboard 0 Movement Mouse Keybinds 0 Fullscreen 2 Font 18/SmallcapsGlow Map View 76x50 Zoom Use 0% Tactical HUD 1 Map Filters NONE Filters NONE Steam 1 RUN: 09ce4e51-eeba-458e-b63e-cdf0a71ab540